bitfinex/quotes_ETHUSD_20240927
["timestamp","ask_amount","ask_price","bid_price","bid_amount"]
[1727429011411,4.55485,2672.4,2671.7,0.7764]
[1727429011735,5.010335,2672.4,2671.7,0.7764]
[1727429011891,3.74225,2672.2,2671.7,0.7764]
[1727429012276,5.010335,2672.4,2671.7,0.7764]
[1727429013590,3.74219,2672.3,2671.7,0.7764]
[1727429013907,5.010335,2672.4,2671.7,0.7764]
[1727429014112,5.010335,2672.4,2671.7,1.528346]
[1727429014421,4.55485,2672.4,2671.7,1.528346]
[1727429014910,8.29693,2672.4,2671.7,1.528346]
[1727429015079,4.55485,2672.4,2671.7,1.528346]
[1727429015817,8.29691,2672.4,2671.7,1.528346]
[1727429016021,4.55485,2672.4,2671.7,1.528346]
[1727429016186,0.8129,2672.4,2671.7,1.528346]
[1727429016385,3.74219,2672.3,2671.8,0.5271296]
[1727429016806,3.74219,2672.3,2671.7,1.528346]
[1727429018228,3.74223,2672.2,2671.7,1.528346]
[1727429018521,0.8129,2672.4,2671.4,3.74325]
[1727429018522,3.7426,2672.0,2671.4,0.8062]
[1727429018828,3.74275,2671.9,2671.4,0.8062]
[1727429019026,3.74281,2671.8,2671.4,0.8062]
[1727429019277,3.74262,2672.0,2671.4,0.8062]
[1727429019387,3.74244,2672.1,2671.4,0.8062]
[1727429019713,3.74274,2671.9,2671.4,0.8062]
[1727429020704,4.51134,2671.9,2671.4,0.8062]
[1727429021752,3.74302,2671.7,2671.1,0.8323]
[1727429022304,3.74302,2671.7,2671.2,3.0]
[1727429022947,3.74302,2671.7,2671.1,4.57606]
[1727429022948,3.74302,2671.7,2671.1,0.8323]
[1727429025503,7.48605,2671.7,2671.1,0.8323]
[1727429025841,3.74324,2671.5,2670.9,3.811]
[1727429026008,0.7514,2671.4,2670.9,3.811]
[1727429026204,0.7514,2671.4,2670.9,0.811]
[1727429026205,4.49485,2671.4,2670.9,0.811]
[1727429026438,0.62712739,2671.3,2670.9,0.811]
[1727429027214,4.37062739,2671.3,2670.9,0.811]
[1727429027416,4.37062739,2671.3,2670.7,0.7627]
[1727429029624,4.37062739,2671.3,2670.5,0.8208]
[1727429029625,3.74373,2671.2,2670.5,0.8208]
[1727429029923,4.29386,2671.1,2670.5,0.8208]
[1727429030248,3.74396,2671.0,2670.5,0.8208]
[1727429030447,4.29386,2671.1,2670.5,0.8208]
[1727429030747,3.74391,2671.0,2670.5,0.8208]
[1727429030903,3.74407,2670.9,2670.5,0.8208]
[1727429031108,3.74434,2670.7,2670.2,0.815]
[1727429031631,0.55,2670.7,2669.9,0.815]
[1727429031812,3.74482,2670.4,2669.9,0.815]
[1727429032012,0.7757,2670.3,2669.9,0.815]
[1727429032256,3.74504,2670.2,2669.7,0.7950015]
[1727429032459,3.74534,2670.0,2669.7,0.0067015]
[1727429033335,3.74559,2669.8,2669.7,0.0067015]
[1727429034121,4.29559,2669.8,2669.7,0.0067015]
[1727429037191,5.05829,2669.8,2669.7,0.0067015]
[1727429037342,8.05829,2669.8,2669.7,0.0067015]
[1727429037545,5.57808512,2669.8,2669.7,0.0067015]
[1727429038587,5.02808512,2669.8,2669.7,0.0067015]
[1727429040968,4.26538512,2669.8,2669.7,0.0067015]
[1727429041175,3.74559,2669.8,2669.7,0.0067015]
[1727429043501,4.56079,2669.8,2669.7,0.0067015]
[1727429049423,7.56079,2669.8,2669.7,0.0067015]
[1727429051727,3.74545,2669.9,2669.7,0.0067015]
[1727429051888,3.74534,2670.0,2669.7,0.0067015]
[1727429052085,4.9146484,2670.0,2669.7,0.0067015]
[1727429052393,3.74547,2669.9,2669.7,0.0067015]
[1727429052936,3.74559,2669.8,2669.7,0.0067015]
[1727429053288,3.0,2670.1,2669.7,0.0067015]
[1727429053488,3.74509,2670.2,2669.8,0.7818]
[1727429054090,3.7452,2670.1,2669.8,0.7818]
[1727429054292,3.74532,2670.0,2669.7,0.0067015]
[1727429054589,3.74509,2670.2,2669.7,0.0067015]
[1727429054891,3.74538,2670.0,2669.7,0.0067015]
[1727429055524,3.74509,2670.2,2669.7,0.0067015]
[1727429055731,3.74518,2670.1,2669.7,0.0067015]
[1727429055913,4.200819,2670.2,2669.7,0.0067015]
[1727429056223,7.945989,2670.2,2669.7,0.0067015]
[1727429056436,8.1198,2670.5,2669.7,0.5567015]
[1727429056587,3.74478,2670.4,2669.9,0.7601]
[1727429056791,7.3,2670.5,2669.9,0.7601]
[1727429056993,7.3,2670.5,2669.9,1.64145333]
[1727429057195,3.74478,2670.4,2669.9,1.64145333]
[1727429057711,7.3,2670.5,2669.9,1.64145333]
[1727429058044,11.04405,2670.9,2670.2,3.75109181]
[1727429058200,11.04405,2670.9,2670.2,4.20940099]
[1727429058201,3.74432,2670.8,2670.2,4.20940099]
[1727429058404,3.74432,2670.8,2670.2,0.55]
[1727429058710,3.74436,2670.7,2670.2,0.55]
[1727429060239,3.74436,2670.7,2670.1,0.832]
[1727429060735,3.7445,2670.6,2670.1,0.832]
[1727429061040,3.74468,2670.5,2670.1,0.832]
[1727429063751,4.493386,2670.6,2670.1,0.832]
[1727429063903,3.7445,2670.6,2670.1,0.832]
[1727429067664,3.7442,2670.8,2670.1,0.832]
[1727429067665,3.74483,2670.4,2670.1,0.832]
[1727429068769,3.74498,2670.3,2669.8,0.816]
[1727429068970,4.119463,2670.3,2669.8,0.816]
[1727429069646,0.374483,2670.3,2669.8,0.816]
[1727429070338,3.74504,2670.2,2669.8,0.816]
[1727429071443,0.374483,2670.3,2669.8,0.816]
[1727429072672,4.119423,2670.3,2669.8,0.816]
[1727429072968,0.7581,2670.7,2669.9,0.55]
[1727429073132,3.7443,2670.8,2670.1,0.7652]
[1727429074181,3.74439,2670.7,2670.1,0.7652]
[1727429074397,0.748869,2670.6,2670.1,0.7652]
[1727429074679,3.7443,2670.8,2670.1,0.7652]
[1727429075658,3.74433,2670.7,2670.1,0.7652]
[1727429076075,3.7443,2670.8,2670.1,0.7652]
[1727429076235,3.74447,2670.6,2670.1,0.7652]
[1727429077581,3.74466,2670.5,2670.1,0.7652]
[1727429077750,3.74447,2670.6,2670.1,0.7652]
[1727429077944,4.493341,2670.6,2670.1,0.7652]
[1727429078343,8.237951,2670.6,2670.1,0.7652]
[1727429078545,3.74462,2670.5,2670.1,0.7652]
[1727429079580,4.493341,2670.6,2670.1,0.7652]
[1727429079778,3.74462,2670.5,2670.1,0.7652]
[1727429079982,4.493341,2670.6,2670.1,0.7652]
[1727429081078,3.74447,2670.6,2670.1,0.7652]
[1727429081959,3.74398,2671.0,2670.1,0.7652]
[1727429082161,3.74398,2671.0,2670.3,1.328]
[1727429082162,3.74409,2670.9,2670.3,1.328]
[1727429082364,3.74409,2670.9,2670.3,1.835302]
[1727429082559,3.74409,2670.9,2670.3,1.328]
[1727429083210,3.74448,2670.6,2670.3,0.778]
[1727429083396,3.74428,2670.8,2670.3,0.778]
[1727429083550,4.493188,2670.7,2670.3,0.778]
[1727429084191,8.237638,2670.7,2670.3,0.778]
[1727429084490,8.237628,2670.7,2670.3,0.778]
[1727429084793,3.74447,2670.6,2670.3,0.778]
[1727429085142,4.493188,2670.7,2670.3,0.778]
[1727429085785,3.74457,2670.6,2670.3,0.778]
[1727429086153,3.74461,2670.5,2670.3,0.778]
[1727429086352,3.74461,2670.5,2669.9,6.74537]
[1727429086353,3.74461,2670.5,2669.9,0.76]
[1727429087528,3.745,2670.3,2669.9,0.76]
[1727429089479,0.8105,2670.6,2669.7,0.7985015]
[1727429089480,3.74527,2670.1,2669.7,0.7985015]
[1727429089718,0.374527,2670.0,2669.7,0.7985015]
[1727429089879,3.74505,2670.2,2669.7,0.7985015]
[1727429090681,3.74518,2670.1,2669.7,0.7985015]
[1727429090917,3.74546,2669.9,2669.7,0.0067015]
[1727429091117,4.120136,2669.8,2669.7,0.0067015]
[1727429092004,7.934336,2669.8,2669.7,0.0067015]
[1727429099374,3.74693,2668.9,2668.7,0.827]
[1727429101130,3.74693,2668.9,2668.2,3.0]
[1727429101131,3.74693,2668.9,2668.2,0.7912]
[1727429101443,3.74701,2668.8,2668.2,0.7912]
[1727429102270,0.7554,2669.3,2668.2,0.7912]
[1727429102473,3.74709,2668.8,2668.2,0.7912]
[1727429102772,3.7473,2668.6,2668.2,0.7912]
[1727429103133,3.74745,2668.5,2668.2,0.7912]
[1727429103653,3.74759,2668.4,2668.2,0.7912]
[1727429104258,3.7477,2668.3,2668.2,0.7912]
[1727429104580,7.49528,2668.4,2668.2,0.7912]
[1727429104778,7.49528,2668.4,2667.2,3.74923]
[1727429104779,0.374759,2668.4,2667.6,0.7975]
[1727429104983,0.374759,2668.4,2667.1,0.3749]
[1727429104984,3.74756,2668.4,2667.7,3.74845]
[1727429105271,3.74729,2668.6,2668.0,0.7813]
[1727429105442,7.3,2668.7,2668.0,0.7813]
[1727429105645,0.374546,2669.8,2668.6,0.7813]
[1727429105646,7.3,2669.4,2668.6,0.7813]
[1727429105836,3.74618,2669.4,2668.9,0.7813]
[1727429106476,3.74604,2669.5,2668.9,0.8002]
[1727429106633,3.7459,2669.6,2668.9,4.54702]
[1727429106835,3.7458,2669.7,2669.0,1.3502]
[1727429107535,3.74588,2669.6,2669.0,0.8002]
[1727429107734,3.74607,2669.5,2669.0,0.8002]
[1727429107947,3.74625,2669.4,2669.0,0.8002]
[1727429108346,3.7463,2669.3,2669.0,0.8002]
[1727429108673,3.7463,2669.3,2668.3,6.74764]
[1727429108674,0.374588,2669.5,2668.7,0.7988]
[1727429108884,3.74696,2668.9,2668.7,0.7988]
[1727429109180,0.7798,2669.6,2668.7,0.7988]
[1727429109181,3.74674,2669.0,2668.7,0.7988]
[1727429109674,3.74686,2668.9,2668.7,0.7988]
[1727429109979,4.121546,2668.9,2668.7,0.7988]
[1727429110133,3.74686,2668.9,2668.7,0.7988]
[1727429110560,3.747,2668.8,2668.7,0.7988]
[1727429110762,3.747,2668.8,2668.2,0.7502]
[1727429110965,0.74938,2668.8,2668.2,0.7502]
[1727429111171,3.74766,2668.4,2668.2,0.7502]
[1727429111537,3.74766,2668.4,2667.6,4.54878]
[1727429111776,3.74766,2668.4,2667.7,0.454878]
[1727429112070,3.74766,2668.4,2667.8,0.8001]
[1727429112884,3.74774,2668.3,2667.8,0.8001]
[1727429113237,3.74787,2668.2,2667.8,0.8001]
[1727429113442,3.74809,2668.1,2667.8,0.8001]
[1727429113666,0.374809,2668.0,2667.8,0.8001]
[1727429113875,3.74809,2668.1,2667.8,0.8001]
[1727429114082,3.7481,2668.1,2667.8,0.8001]
[1727429114374,3.74842,2667.8,2667.5,0.7833]
[1727429114549,3.74842,2667.8,2667.1,0.7835]
[1727429114550,0.374842,2667.8,2667.1,0.7835]
[1727429114763,3.74888,2667.5,2667.1,0.7835]
[1727429115379,3.74858,2667.7,2667.1,0.7835]
[1727429115554,3.74885,2667.5,2667.1,0.7835]
[1727429116586,3.74907,2667.4,2667.1,0.7835]
[1727429116742,3.74907,2667.4,2667.0,0.1286029]
[1727429116743,3.74939,2667.1,2667.0,0.1286029]
[1727429117083,3.74936,2667.2,2667.0,0.1286029]
[1727429117243,4.576326,2667.2,2667.0,0.1286029]
[1727429117641,3.74939,2667.1,2667.0,0.1286029]
[1727429118186,4.576326,2667.2,2667.0,0.1286029]
[1727429119201,3.74939,2667.1,2667.0,0.1286029]
[1727429120544,4.576326,2667.2,2667.0,0.1286029]
[1727429120805,3.74936,2667.2,2667.0,0.1286029]
[1727429121902,4.52029,2667.4,2667.0,0.1286029]
[1727429122141,3.74899,2667.4,2667.0,0.1286029]
[1727429122279,3.74911,2667.3,2667.0,0.1286029]
[1727429122904,3.74886,2667.5,2667.0,0.1286029]
[1727429123108,3.74897,2667.4,2667.0,0.1286029]
[1727429123601,3.74886,2667.5,2667.0,0.1286029]
[1727429124083,3.74898,2667.4,2667.0,0.1286029]
[1727429125987,3.74872,2667.6,2667.1,0.8327]
[1727429126187,3.74883,2667.5,2667.1,1.30378429]
[1727429126389,3.74883,2667.5,2667.1,0.8327]
[1727429126701,3.74872,2667.6,2667.1,0.8327]
[1727429126912,3.74886,2667.5,2667.1,0.8327]
[1727429127617,3.74897,2667.4,2667.1,0.8327]
[1727429128382,4.123977,2667.4,2667.0,0.1286029]
[1727429128593,3.74925,2667.2,2667.0,0.1286029]
[1727429128994,3.74939,2667.1,2667.0,0.1286029]
[1727429129680,3.74925,2667.2,2667.0,0.1286029]
[1727429129915,7.49862,2667.2,2667.0,0.1286029]
[1727429130218,3.74925,2667.2,2667.0,0.1286029]
[1727429130435,3.74939,2667.1,2667.0,0.1286029]
[1727429130785,4.5365657,2667.2,2667.0,0.1286029]
[1727429131202,3.74898,2667.4,2667.0,0.9361029]
[1727429131203,3.74912,2667.3,2667.0,0.9361029]
[1727429132185,3.74925,2667.2,2667.0,0.1286029]
[1727429132386,4.124315,2667.1,2667.0,0.1286029]
[1727429138604,3.74925,2667.2,2667.0,0.1286029]
[1727429139242,4.54839,2667.1,2667.0,0.1286029]
[1727429140209,7.54839,2667.1,2667.0,0.1286029]
[1727429140728,3.74925,2667.2,2666.0,0.17613636]
[1727429140729,3.75079,2666.1,2666.0,0.17613636]
[1727429141051,4.500933,2666.1,2666.0,0.17613636]
[1727429141204,3.75079,2666.1,2666.0,0.17613636]
[1727429144053,3.0,2666.4,2666.0,0.17613636]
[1727429144347,6.75049,2666.4,2666.0,0.17613636]
[1727429144649,3.0,2666.4,2666.0,0.17613636]
[1727429144855,3.75055,2666.3,2666.0,0.17613636]
[1727429145546,4.54924,2666.5,2666.0,0.17613636]
[1727429146126,3.7506,2666.3,2666.0,0.17613636]
[1727429146847,3.75072,2666.2,2666.0,0.17613636]
[1727429147025,3.7506,2666.3,2666.0,0.17613636]
[1727429147232,3.75079,2666.1,2666.0,0.17613636]
[1727429151736,5.004214,2666.5,2666.0,0.17613636]
[1727429151942,3.75038,2666.4,2666.1,0.8205]
[1727429152345,3.75062,2666.3,2666.0,0.17613636]
[1727429152550,3.75038,2666.4,2666.0,0.17613636]
[1727429153044,3.75012,2666.6,2666.1,0.8105]
[1727429153247,3.74985,2666.8,2666.1,4.22456064]
[1727429153428,3.74862,2667.7,2666.1,4.22456064]
[1727429153429,11.04909,2667.4,2666.7,3.74994]
[1727429153647,11.04909,2667.4,2666.8,0.7777]
[1727429153648,3.74926,2667.2,2666.8,0.7777]
[1727429154161,3.74972,2666.9,2666.3,1.26577452]
[1727429154320,3.74998,2666.7,2666.3,0.8282]
[1727429154665,3.75025,2666.5,2666.3,0.8282]
[1727429156759,3.75025,2666.5,2666.1,0.7804]
[1727429156967,3.75038,2666.4,2666.1,0.7804]
[1727429157135,3.75052,2666.3,2666.1,0.7804]
[1727429157654,3.75026,2666.5,2666.1,0.7804]
[1727429157849,3.75037,2666.4,2666.1,0.7804]
[1727429158032,3.75039,2666.4,2666.1,0.7804]
[1727429158465,3.75026,2666.5,2666.1,0.7804]
[1727429159652,4.425286,2666.5,2666.1,0.7804]
[1727429159970,3.75037,2666.4,2666.1,0.7804]
[1727429160152,3.75026,2666.5,2666.1,0.7804]
[1727429160933,3.75039,2666.4,2666.1,0.7804]
[1727429161142,3.75063,2666.3,2666.1,0.7804]
[1727429161337,7.50062,2666.5,2666.1,0.7804]
[1727429161672,3.75028,2666.5,2666.1,0.7804]
[1727429162026,7.50005,2666.7,2666.1,0.7804]
[1727429162365,3.74998,2666.7,2666.1,0.7804]
[1727429162578,3.74998,2666.7,2666.1,1.25115864]
[1727429162967,3.74971,2666.9,2666.2,3.75063]
[1727429163125,11.04936,2667.2,2666.3,0.823]
[1727429163328,11.04928,2667.2,2666.4,0.823]
[1727429163543,3.74965,2667.0,2666.4,1.280363]
[1727429164961,3.74965,2667.0,2666.5,0.8284]
[1727429165279,3.74928,2667.2,2666.5,0.8284]
[1727429165444,7.3,2667.5,2666.7,0.55]
[1727429165629,3.74909,2667.4,2666.8,0.8284]
[1727429165973,3.74873,2667.6,2666.9,0.8319]
[1727429166973,7.3,2667.9,2667.2,4.29921]
[1727429167269,3.74842,2667.8,2667.3,0.7724]
[1727429167577,3.74872,2667.6,2667.3,0.7724]
[1727429168025,3.7489,2667.5,2667.3,0.7724]
[1727429168229,3.74872,2667.6,2667.3,0.7724]
[1727429168454,3.74843,2667.8,2667.3,0.7724]
[1727429168670,3.74816,2668.0,2667.3,0.7724]
[1727429168867,3.74816,2668.0,2667.3,1.224569]
[1727429169043,3.74762,2668.4,2667.3,0.7558]
[1727429169381,3.74762,2668.4,2667.5,0.7558]
[1727429169534,0.449872,2668.3,2667.5,0.7558]
[1727429169868,3.74762,2668.4,2667.6,0.7558]
[1727429170026,11.04734,2668.6,2667.8,0.7558]
[1727429170229,3.74743,2668.5,2667.8,0.7558]
[1727429170430,3.74772,2668.3,2667.8,0.7558]
[1727429170661,3.74805,2668.1,2667.8,0.7558]
[1727429170826,11.04739,2668.6,2667.8,0.7558]
[1727429171045,3.74768,2668.4,2667.8,0.7558]
[1727429171243,3.74758,2668.4,2667.8,0.7558]
[1727429171759,3.74785,2668.2,2667.8,0.7558]
[1727429173836,3.74785,2668.2,2666.7,1.07149]
[1727429173837,3.74841,2667.8,2667.2,0.8113]
[1727429175873,3.74855,2667.7,2667.2,0.8113]
[1727429177636,4.498246,2667.7,2667.2,0.8113]
[1727429178080,3.74896,2667.5,2667.2,0.8113]
[1727429178282,3.74869,2667.6,2667.2,0.8113]
[1727429178441,3.74887,2667.5,2667.2,0.8113]
[1727429179082,3.74902,2667.4,2667.2,0.8113]
[1727429179654,0.4498386,2667.5,2667.2,0.8113]
[1727429181083,4.1986686,2667.5,2667.2,0.8113]
[1727429181354,3.74897,2667.4,2667.2,0.8113]
[1727429181550,3.74927,2667.2,2666.6,0.8051]
[1727429181755,3.74964,2667.0,2666.6,0.8051]
[1727429181988,3.74981,2666.8,2666.6,0.8051]
[1727429182292,3.74995,2666.7,2666.6,0.8051]
[1727429182468,3.74981,2666.8,2666.6,0.8051]
[1727429185164,3.74995,2666.7,2666.6,0.8051]
[1727429186157,3.7501,2666.6,2666.1,0.7988]
[1727429187167,4.500121,2666.6,2666.1,0.7988]
[1727429188058,3.75039,2666.4,2666.1,0.7988]
[1727429188261,4.500121,2666.6,2666.1,0.7988]
[1727429189198,3.75026,2666.5,2666.1,0.7988]
[1727429189556,0.749991,2666.6,2666.1,0.7988]
[1727429189755,8.1074,2667.1,2666.1,0.7988]
[1727429189756,3.75065,2666.2,2666.1,0.7988]
[1727429189955,3.75052,2666.3,2666.1,0.7988]
[1727429189956,7.50115,2666.3,2666.1,0.7988]
[1727429190179,3.75065,2666.2,2666.1,0.7988]
[1727429190962,3.75052,2666.3,2666.1,0.7988]
[1727429191296,3.75079,2666.1,2666.0,0.17613636]
[1727429191500,4.500598,2666.3,2666.0,0.17613636]
[1727429191501,7.50116,2666.3,2666.0,0.17613636]
[1727429191698,3.75052,2666.3,2666.0,0.17613636]
[1727429192193,3.75052,2666.3,2666.1,0.8077]
[1727429192394,3.75033,2666.5,2666.1,0.8077]
[1727429192768,3.75,2666.7,2666.1,0.8077]
[1727429192969,3.75023,2666.5,2666.1,0.8077]
[1727429193981,7.50058,2666.5,2666.1,0.8077]
[1727429194508,3.75023,2666.5,2666.1,0.8077]
[1727429195007,4.500254,2666.5,2666.1,0.8077]
[1727429195163,3.7506,2666.3,2666.1,0.8077]
[1727429196069,3.75037,2666.4,2666.1,0.8077]
[1727429196267,3.75023,2666.5,2666.1,0.8077]
[1727429196912,3.75037,2666.4,2666.1,0.8077]
[1727429197469,3.75056,2666.3,2666.1,0.8077]
[1727429197965,4.500639,2666.3,2666.0,0.17613636]
[1727429198309,3.75079,2666.1,2666.0,0.17613636]
[1727429201099,3.75056,2666.3,2666.0,0.17613636]
[1727429201340,3.75079,2666.1,2666.0,0.17613636]
[1727429202789,7.50117,2666.3,2666.0,0.17613636]
[1727429203000,4.207616,2666.3,2666.0,0.17613636]
[1727429203209,3.75028,2666.5,2666.1,0.7569]
[1727429203509,3.75054,2666.3,2666.1,0.7569]
[1727429203708,3.75065,2666.2,2666.1,0.7569]
[1727429204592,3.75038,2666.4,2666.1,0.7569]
[1727429204787,3.75053,2666.3,2666.1,0.7569]
[1727429205199,4.53103,2666.3,2666.0,0.17613636]
[1727429205510,3.75079,2666.1,2666.0,0.17613636]
[1727429207513,4.50599,2666.1,2666.0,0.17613636]
[1727429211620,3.75079,2666.1,2666.0,0.17613636]
[1727429215193,4.57669,2666.1,2666.0,0.17613636]
[1727429218366,6.75121,2665.8,2665.7,0.18935529]
[1727429220995,3.75121,2665.8,2665.7,0.18935529]
[1727429221201,3.75107,2666.0,2665.7,0.18935529]
[1727429221401,3.75107,2666.0,2665.8,0.8053]
[1727429223499,3.75071,2666.2,2665.8,0.8053]
[1727429223802,3.75107,2665.9,2665.8,0.8053]
[1727429225148,3.75121,2665.8,2665.7,0.18935529]
[1727429227305,3.19341,2665.8,2665.7,0.18935529]
[1727429231439,3.75107,2665.9,2665.7,0.18935529]
[1727429232152,3.75121,2665.8,2665.7,0.18935529]
[1727429233480,7.50227,2665.9,2665.7,0.18935529]
[1727429233681,3.75107,2665.9,2665.7,0.18935529]
[1727429233849,3.75107,2665.9,2665.8,0.8052]
[1727429234453,3.75095,2666.0,2665.8,0.8052]
[1727429234655,3.75107,2665.9,2665.8,0.8052]
[1727429235068,3.75121,2665.8,2665.7,0.18935529]
[1727429241875,7.50227,2665.9,2665.7,0.18935529]
[1727429242282,3.75121,2665.8,2665.7,0.18935529]
[1727429243774,7.50225,2665.9,2665.7,0.18935529]
[1727429244095,3.75107,2665.9,2665.7,0.18935529]
[1727429244309,3.75121,2665.8,2665.7,0.18935529]
[1727429244811,3.75107,2665.9,2665.7,0.18935529]
[1727429245173,3.75121,2665.8,2665.7,0.18935529]
[1727429246111,3.75107,2665.9,2665.7,0.18935529]
[1727429246309,3.75121,2665.8,2665.7,0.18935529]
[1727429249581,5.292338,2665.8,2665.7,0.18935529]
[1727429250106,5.292338,2665.8,2665.3,0.20257421]
[1727429250107,4.30178,2665.4,2665.3,0.20257421]
[1727429250417,4.5431,2665.1,2665.0,0.21579314]
[1727429250714,5.372615,2665.1,2665.0,0.21579314]
[1727429252178,5.922615,2665.1,2665.0,0.21579314]
[1727429252504,5.372615,2665.1,2665.0,0.21579314]
[1727429252717,3.7522,2665.1,2665.0,0.21579314]
[1727429253927,3.75205,2665.3,2665.0,0.21579314]
[1727429254216,3.75205,2665.3,2665.1,0.7736]
[1727429255008,3.75204,2665.3,2665.1,0.7736]
[1727429255383,3.75167,2665.5,2665.1,0.7736]
[1727429256482,3.75178,2665.4,2665.1,0.7736]
[1727429257006,4.3022,2665.1,2665.0,0.21579314]
[1727429257176,3.7522,2665.1,2665.0,0.21579314]
[1727429257821,3.75087,2666.1,2665.0,0.21579314]
[1727429257822,3.75155,2665.6,2665.1,0.7922]
[1727429258315,3.75126,2665.8,2665.1,0.7922]
[1727429258316,3.75136,2665.7,2665.1,0.7922]
[1727429258478,3.75136,2665.7,2665.2,0.48352594]
[1727429258674,3.75126,2665.8,2665.2,0.48352594]
[1727429258884,3.75126,2665.8,2665.1,0.86723098]
[1727429258885,3.75139,2665.7,2665.1,0.86723098]
[1727429259084,3.75152,2665.6,2665.1,0.7922]
[1727429259585,3.75167,2665.5,2665.1,1.19299931]
[1727429259982,3.75164,2665.5,2665.1,1.19299931]
[1727429261123,3.75112,2665.9,2665.1,1.19299931]
[1727429261289,3.75145,2665.7,2665.2,0.7922]
[1727429261492,3.75112,2665.9,2665.2,0.51611224]
[1727429261822,3.75112,2665.9,2665.3,0.7922]
[1727429261823,7.50233,2665.9,2665.3,0.7922]
[1727429261977,7.50233,2665.9,2665.3,0.86723096]
[1727429262178,3.75112,2665.9,2665.3,0.86723096]
[1727429262401,3.75121,2665.8,2665.4,0.51353832]
[1727429262612,3.75161,2665.6,2665.3,0.7922]
[1727429262787,3.75168,2665.5,2665.3,0.7922]
[1727429263008,3.75128,2665.8,2665.3,0.7922]
[1727429263183,3.75128,2665.8,2665.3,1.29421342]
[1727429263988,3.75128,2665.8,2665.3,0.7922]
[1727429264391,3.75117,2665.9,2665.3,0.7922]
[1727429264614,3.75122,2665.8,2665.3,0.7922]
[1727429264920,3.75147,2665.7,2665.3,1.246616]
[1727429265122,3.75147,2665.7,2665.3,0.7922]
[1727429265426,3.75151,2665.6,2665.3,0.7922]
[1727429265926,7.50256,2665.8,2665.3,0.7922]
[1727429266081,3.75122,2665.8,2665.3,0.7922]
[1727429267894,3.75136,2665.7,2665.3,0.7922]
[1727429268094,3.75122,2665.8,2665.3,0.7922]
[1727429268783,3.75072,2666.2,2665.4,0.07503088]
[1727429269122,3.75046,2666.4,2665.7,0.7703]
[1727429269292,3.75055,2666.3,2665.8,0.45217]
[1727429269619,3.75066,2666.2,2665.8,0.45217]
[1727429269792,3.75066,2666.2,2665.7,0.7703]
[1727429269992,3.75055,2666.3,2665.7,0.7703]
[1727429270182,3.75026,2666.5,2665.8,0.7703]
[1727429270692,3.75061,2666.3,2665.8,0.7703]
[1727429270891,3.75026,2666.5,2665.8,0.7703]
[1727429271122,3.75039,2666.4,2665.8,0.7703]
[1727429271651,3.75053,2666.3,2665.8,0.7703]
[1727429272055,3.75053,2666.3,2665.8,1.2299734]
[1727429272259,3.75053,2666.3,2665.8,0.4596734]
[1727429272553,3.75053,2666.3,2665.9,0.7947]
[1727429274362,3.7501,2666.6,2666.0,0.7563]
[1727429274651,3.75026,2666.5,2666.1,1.207033]
[1727429274889,3.75028,2666.5,2666.1,0.7563]
[1727429275085,0.7782,2666.8,2666.1,0.7563]
[1727429275296,3.75065,2666.2,2665.4,3.0]
[1727429275498,3.75065,2666.2,2665.1,3.75216]
[1727429275499,3.75106,2666.0,2665.5,0.7783]
[1727429275850,3.75136,2665.7,2665.5,0.7783]
[1727429276255,3.7515,2665.6,2665.5,0.7783]
[1727429276465,3.75131,2665.8,2665.5,0.7783]
[1727429277120,3.7515,2665.6,2665.5,0.7783]
[1727429278168,3.75164,2665.5,2665.2,0.8051]
[1727429278610,3.7515,2665.6,2665.2,0.8051]
[1727429278914,3.75179,2665.4,2665.2,0.8051]
[1727429279700,3.75192,2665.3,2665.2,0.8051]
[1727429279873,4.52109,2665.4,2665.0,0.21579314]
[1727429280219,3.75207,2665.2,2665.0,0.21579314]
[1727429281717,3.7522,2665.1,2665.0,0.21579314]
[1727429283773,6.7522,2665.1,2665.0,0.21579314]
[1727429284418,3.7522,2665.1,2665.0,0.21579314]
[1727429296693,8.1196,2665.1,2665.0,0.21579314]
[1727429296889,9.03813239,2665.1,2665.0,0.21579314]
[1727429302310,3.75262,2664.8,2664.7,0.22901206]
[1727429302510,8.05732,2664.8,2664.7,0.22901206]
[1727429303013,8.05732,2664.8,2664.4,0.24223098]
[1727429303014,4.50774,2664.5,2664.4,0.24223098]
[1727429303208,5.11291,2664.1,2663.7,0.26866883]
[1727429303421,8.11291,2664.1,2663.7,0.26866883]
[1727429304350,6.75347,2664.2,2663.7,0.26866883]
[1727429304662,3.0,2664.2,2663.7,0.26866883]
[1727429305150,3.75361,2664.1,2663.7,0.26866883]
[1727429305323,4.205719,2664.1,2663.7,0.26866883]
[1727429305655,3.75361,2664.1,2663.7,0.26866883]
[1727429315221,4.52051,2664.1,2663.7,0.26866883]
[1727429315528,8.07051,2664.1,2663.7,0.26866883]
[1727429319146,8.07051,2664.1,2664.0,0.06386247]
[1727429319445,9.07059812,2664.1,2664.0,0.06386247]
[1727429319770,10.80523397,2664.1,2664.0,0.06386247]
[1727429320080,4.52995,2663.5,2663.4,3.12021421]
[1727429320386,8.07995,2663.5,2663.4,3.12021421]
[1727429323844,21.56717846,2663.5,2663.4,2.51079737]
[1727429324687,22.02340346,2663.5,2663.4,2.51079737]
[1727429324852,22.02340346,2663.5,2663.4,1.70655757]
[1727429325047,22.85970458,2663.5,2663.4,1.70655757]
[1727429325466,11.90025758,2663.5,2663.4,1.70655757]
[1727429325783,62.26921658,2663.5,2663.4,1.33324809]
[1727429325982,57.23458658,2663.5,2663.4,1.33324809]
[1727429326295,4.54989,2662.2,2662.1,0.33476345]